bitfinex-derivatives/quotes_BNBF0:USTF0_20250330
["timestamp","ask_amount","ask_price","bid_price","bid_amount"]
[1743377398496,2.62739051,599.22,597.58,0.33468322]
[1743377398697,0.30691908,599.21,597.58,0.33468322]
[1743377398895,0.59770906,599.21,597.58,0.33468322]
[1743377399098,0.30691908,599.2,597.58,0.33468322]
[1743377399294,7.09051512,599.2,597.58,0.33468322]
[1743377399496,6.82837627,599.19,597.58,0.33468322]
[1743377399695,3.12855518,599.18,597.58,0.33468322]
[1743377399895,5.66473912,599.18,597.58,0.33468322]
[1743377400098,4.89941258,599.17,597.58,0.33468322]
[1743377400297,2.62739051,599.16,597.58,0.33468322]
[1743377400590,0.30691908,599.15,597.58,0.33468322]
[1743377400993,6.82780737,599.15,597.58,0.33468322]
[1743377401300,1.63273058,599.13,597.58,0.33468322]
[1743377401493,1.63273058,599.08,597.58,0.33468322]
[1743377401699,0.30691908,599.07,597.58,0.33468322]
[1743377402094,2.02058221,599.07,597.58,0.33468322]
[1743377402296,1.63273058,599.04,597.58,0.33468322]
[1743377402497,1.72970838,599.03,597.58,0.33468322]
[1743377402699,1.4227893,599.03,597.58,0.33468322]
[1743377402896,0.30713165,599.02,597.58,0.33468322]
[1743377403099,2.61977253,599.02,597.58,0.33468322]
[1743377403303,1.63273058,599.0,597.58,0.33468322]
[1743377403498,0.30713165,598.99,597.58,0.33468322]
[1743377403897,1.168211,598.98,597.58,0.33468322]
[1743377404299,7.1701802,598.98,597.58,0.33468322]
[1743377404505,6.0019692,598.97,597.58,0.33468322]
[1743377404706,6.0019692,598.96,597.58,0.33468322]
[1743377404904,2.31264088,598.95,597.58,0.33468322]
[1743377405102,0.88947726,598.95,597.58,0.33468322]
[1743377405300,2.31264088,598.95,597.58,0.33468322]
[1743377405607,5.34998949,598.95,597.58,0.33468322]
[1743377405808,3.68932832,598.94,597.58,0.33468322]
[1743377406005,7.1701802,598.94,597.58,0.33468322]
[1743377406201,6.0019692,598.93,597.58,0.33468322]
[1743377406508,6.0019692,598.92,597.58,0.33468322]
[1743377406702,2.30844969,598.91,597.58,0.33468322]
[1743377406904,3.03734861,598.92,597.58,0.33468322]
[1743377407310,7.61353176,598.92,597.58,0.33468322]
[1743377407506,2.30844969,598.91,597.58,0.33468322]
[1743377408101,0.29086897,598.9,597.58,0.33468322]
[1743377409805,2.59942268,598.9,597.58,0.33468322]
[1743377410006,0.30709036,598.89,597.58,0.33468322]
[1743377410210,1.19656762,598.89,597.58,0.33468322]
[1743377410409,0.30709036,598.88,597.58,0.33468322]
[1743377410604,2.30844969,598.89,597.58,0.33468322]
[1743377410808,0.30704828,598.88,597.58,0.33468322]
[1743377411010,3.03734861,598.94,597.58,0.33468322]
[1743377411305,0.30701732,598.93,597.58,0.33468322]
[1743377411710,3.03734861,598.94,597.58,0.33468322]
[1743377412813,1.689,598.95,597.58,0.33468322]
[1743377436330,3.555,598.95,597.58,0.33468322]
[1743377440233,3.555,598.95,597.71,2.55840015]
[1743377440432,3.555,598.95,597.73,0.33459923]
[1743377445028,3.555,598.95,597.74,2.55840015]
[1743377445629,3.555,598.95,597.76,0.33458244]
[1743377446434,3.555,598.95,597.76,2.89298259]
[1743377447835,3.555,598.95,597.76,0.33458244]
[1743377449535,3.555,598.95,597.81,2.55840015]
[1743377449732,3.555,598.95,597.83,0.33454326]
[1743377472655,3.555,598.95,597.93,2.55840015]
[1743377472850,3.555,598.95,597.95,0.33447612]
[1743377474057,3.555,598.95,598.0,2.55840015]
[1743377474255,3.555,598.95,598.02,0.33443697]
[1743377479055,3.555,598.95,598.04,2.55840015]
[1743377479358,3.555,598.95,598.06,0.3344146]
[1743377480860,3.555,598.95,598.26,2.55840015]
[1743377481058,3.555,598.95,598.27,0.33429722]
[1743377527006,1.16199313,598.94,598.27,0.33429722]
[1743377527605,1.16199313,599.18,596.9,2.55840015]
[1743377527805,0.30705832,599.17,597.01,0.33500276]
[1743377528009,6.80093471,599.17,597.01,0.33500276]
[1743377528207,2.80824576,599.16,597.01,0.33500276]
[1743377528410,7.06318713,599.16,597.01,0.33500276]
[1743377528707,6.80093471,599.15,597.01,0.33500276]
[1743377528904,3.11530408,599.14,597.01,0.33500276]
[1743377529106,0.30705832,599.13,597.01,0.33500276]
[1743377529511,6.80093471,599.13,597.01,0.33500276]
[1743377529707,4.05605088,599.12,597.01,0.33500276]
[1743377529907,3.99268895,599.11,597.01,0.33500276]
[1743377530111,2.61405088,599.1,597.01,0.33500276]
[1743377530310,0.30705832,599.09,597.01,0.33500276]
[1743377530510,2.61405088,599.09,597.01,0.33500276]
[1743377530707,0.30705832,599.08,597.01,0.33500276]
[1743377530908,1.19436315,599.08,597.01,0.33500276]
[1743377531110,0.30705832,599.07,597.01,0.33500276]
[1743377534513,0.30697421,599.06,597.01,0.33500276]
[1743377534808,0.30697421,599.05,597.01,0.33500276]
[1743377535009,0.29090058,599.08,597.01,0.33500276]
[1743377535010,1.46896734,599.07,597.01,0.33500276]
[1743377535209,0.30697421,599.06,597.01,0.33500276]
[1743377536009,3.03158601,599.06,597.01,0.33500276]
[1743377536216,9.00719202,599.06,597.01,0.33500276]
[1743377536410,9.00686603,599.05,597.01,0.33500276]
[1743377536609,4.56060324,599.04,597.01,0.33500276]
[1743377536808,0.88730483,599.03,597.01,0.33500276]
[1743377537012,2.30011191,599.04,597.01,0.33500276]
[1743377537715,0.2909626,599.06,597.01,0.33500276]
[1743377537906,0.30703982,599.05,597.01,0.33500276]
[1743377538111,1.16199313,599.05,597.01,0.33500276]
[1743377538307,0.30703666,599.04,597.01,0.33500276]
[1743377538713,1.16199313,599.03,597.01,0.33500276]
[1743377539316,7.13075299,599.03,597.01,0.33500276]
[1743377539613,7.13075299,599.02,597.01,0.33500276]
[1743377539814,5.96875986,599.01,597.01,0.33500276]
[1743377540012,5.96875986,599.0,597.01,0.33500276]
[1743377540211,5.96875986,598.99,597.01,0.33500276]
[1743377540416,5.96875986,598.98,597.01,0.33500276]
[1743377540616,5.96875986,598.97,597.01,0.33500276]
[1743377540813,4.5524688,598.96,597.01,0.33500276]
[1743377541014,2.29567687,598.95,597.01,0.33500276]
[1743377541416,3.45767,598.95,597.01,0.33500276]
[1743377541617,2.29567687,598.94,597.01,0.33500276]
[1743377541810,0.88377609,598.94,597.01,0.33500276]
[1743377542012,1.16199313,598.95,597.01,0.33500276]
[1743377542216,1.16199313,599.01,597.01,0.33500276]
[1743377542417,0.30700328,599.0,597.01,0.33500276]
[1743377542919,0.30700328,598.99,597.01,0.33500276]
[1743377543119,0.2908945,599.01,597.01,0.33500276]
[1743377543419,0.30700328,599.0,597.01,0.33500276]
[1743377544116,0.30700328,598.99,597.01,0.33500276]
[1743377544315,0.30700328,599.08,597.01,0.33500276]
[1743377544515,0.30700328,599.07,597.01,0.33500276]
[1743377544713,0.30700328,599.06,597.01,0.33500276]
[1743377544913,1.18978225,599.07,597.01,0.33500276]
[1743377545113,0.30697767,599.06,597.01,0.33500276]
[1743377545520,1.18975664,599.06,597.01,0.33500276]
[1743377545721,0.30697767,599.05,597.01,0.33500276]
[1743377545920,1.70797767,599.05,597.01,0.33500276]
[1743377546116,0.30697767,599.04,597.01,0.33500276]
[1743377547018,3.03158601,599.04,597.01,0.33500276]
[1743377547218,0.30697733,599.03,597.01,0.33500276]
[1743377547714,3.03158601,599.04,597.01,0.33500276]
[1743377548720,1.401,599.05,597.01,0.33500276]
[1743377552625,1.401,599.05,597.08,2.55840015]
[1743377552821,1.401,599.05,597.1,0.33495226]
[1743377553619,1.401,599.05,597.26,2.55840015]
[1743377553818,1.401,599.05,597.28,0.33485132]
[1743377554827,1.401,599.05,597.37,2.55840015]
[1743377555028,1.401,599.05,597.39,0.33478966]
[1743377559830,1.401,599.05,597.53,2.55840015]
[1743377560024,1.401,599.05,597.55,0.33470002]
[1743377562130,1.16199313,599.46,597.55,0.33470002]
[1743377562332,0.3067701,599.45,597.55,0.33470002]
[1743377562628,0.3067701,599.44,597.55,0.33470002]
[1743377562830,0.3067701,599.51,597.55,0.33470002]
[1743377563032,0.3067701,599.5,597.64,2.55840015]
[1743377563226,0.3067701,599.5,597.66,0.33463842]
[1743377563433,0.3067701,599.51,597.66,0.33463842]
[1743377563626,0.3067701,599.5,597.66,0.33463842]
[1743377563827,0.3067701,599.56,597.66,0.33463842]
[1743377564031,0.3067701,599.55,597.66,0.33463842]
[1743377564229,2.61891132,599.56,597.66,0.33463842]
[1743377564428,0.3067701,599.55,597.66,0.33463842]
[1743377564735,0.3067701,599.54,597.66,0.33463842]
[1743377565033,0.30676176,599.53,597.66,0.33463842]
[1743377565234,0.30676176,599.54,597.66,0.33463842]
[1743377565432,0.30676176,599.53,597.66,0.33463842]
[1743377565631,0.30676176,599.52,597.66,0.33463842]
[1743377565934,1.63376176,599.51,597.66,0.33463842]
[1743377566127,0.30676176,599.5,597.66,0.33463842]
[1743377567128,0.29065883,599.49,597.66,0.33463842]
[1743377567331,0.30676176,599.48,597.66,0.33463842]
[1743377570144,0.2906564,599.47,597.66,0.33463842]
[1743377570443,0.30676176,599.46,597.66,0.33463842]
[1743377571445,6.32909096,599.46,597.66,0.33463842]
[1743377571740,2.62435213,599.45,597.66,0.33463842]
[1743377572045,0.30676176,599.44,597.66,0.33463842]
[1743377572445,2.62584555,599.44,597.66,0.33463842]
[1743377572745,0.30676176,599.43,597.66,0.33463842]
[1743377572943,5.9424658,599.43,597.66,0.33463842]
[1743377573139,6.33180081,599.42,597.66,0.33463842]
[1743377573346,1.19871706,599.41,597.66,0.33463842]
[1743377573545,0.30676176,599.4,597.66,0.33463842]
[1743377573741,5.34327078,599.41,597.66,0.33463842]
[1743377574049,3.02594807,599.41,597.66,0.33463842]
[1743377574741,1.42584758,599.42,597.66,0.33463842]
[1743377574941,0.29067218,599.43,597.66,0.33463842]
[1743377575747,1.327,599.51,597.66,0.33463842]
[1743377576045,3.64579116,599.51,597.66,0.33463842]
[1743377576245,0.29064912,599.46,597.66,0.33463842]
[1743377578748,5.34738736,599.48,597.66,0.33463842]
[1743377579051,0.29066368,599.45,597.66,0.33463842]
[1743377580050,2.60945484,599.45,597.66,0.33463842]
[1743377580452,0.3068674,599.44,597.66,0.33463842]
[1743377580649,9.36438425,599.44,597.66,0.33463842]
[1743377580850,6.53258153,599.43,597.66,0.33463842]
[1743377581149,3.12979117,599.42,597.66,0.33463842]
[1743377581353,0.3069081,599.41,597.66,0.33463842]
[1743377581853,6.33847688,599.41,597.66,0.33463842]
[1743377582151,3.4206274,599.4,597.66,0.33463842]
[1743377582351,0.30693457,599.39,597.66,0.33463842]
[1743377582547,5.21696882,599.39,597.66,0.33463842]
[1743377582851,1.6328918,599.33,597.66,0.33463842]
[1743377583052,0.30693457,599.32,597.66,0.33463842]
[1743377583546,1.93982637,599.32,597.66,0.33463842]
[1743377583751,1.6328918,599.27,597.66,0.33463842]
[1743377583952,1.62829065,599.22,597.66,0.33463842]
[1743377584152,0.30693457,599.21,597.66,0.33463842]
[1743377584354,1.59193457,599.21,597.66,0.33463842]
[1743377584553,0.30693457,599.2,597.66,0.33463842]
[1743377585253,0.29078633,599.19,597.66,0.33463842]
[1743377585453,0.30693457,599.18,597.66,0.33463842]
[1743377586354,1.19955493,599.18,597.66,0.33463842]
[1743377586550,3.02594807,599.18,597.66,0.33463842]
[1743377587454,1.285,599.21,597.66,0.33463842]
[1743377588855,1.285,599.21,597.7,2.55840015]
[1743377589055,1.285,599.21,597.72,0.33460483]
[1743377590553,0.30693517,599.2,597.72,0.33460483]
[1743377591148,0.29075839,599.19,597.72,0.33460483]
[1743377591353,0.30693517,599.18,597.72,0.33460483]
[1743377594157,2.63013613,599.18,597.72,0.33460483]
[1743377594357,0.30693517,599.17,597.72,0.33460483]
[1743377594558,1.49128463,599.17,597.72,0.33460483]
[1743377594754,0.30693517,599.16,597.72,0.33460483]
[1743377594958,3.02594807,599.18,597.72,0.33460483]
[1743377595559,1.285,599.21,597.72,0.33460483]
[1743377595759,1.16199313,599.2,597.72,0.33460483]
[1743377595957,1.285,599.21,597.72,0.33460483]
[1743377600867,1.361,599.2,597.72,0.33460483]
[1743377601767,1.361,599.2,597.75,2.55840015]
[1743377601969,1.361,599.2,597.77,0.33457684]
[1743377607270,2.819,599.2,597.77,0.33457684]
[1743377610565,0.30693848,599.19,597.77,0.33457684]
[1743377610973,2.819,599.2,597.77,0.33457684]
[1743377611172,0.30694585,599.19,597.77,0.33457684]
[1743377613770,6.86220531,599.19,597.77,0.33457684]
[1743377613973,3.13865424,599.18,597.77,0.33457684]
[1743377614172,0.30694585,599.17,597.77,0.33457684]
[1743377614967,6.86220531,599.17,597.77,0.33457684]
[1743377615171,3.13865424,599.16,597.77,0.33457684]
[1743377615375,0.30707175,599.15,597.77,0.33457684]
[1743377615671,2.63764022,599.15,597.77,0.33457684]
[1743377615874,0.30707175,599.14,597.77,0.33457684]
[1743377616173,0.33381736,599.13,597.77,0.33457684]
[1743377616472,1.63754218,598.98,597.77,0.33457684]
[1743377616773,0.64097828,598.97,597.77,0.33457684]
[1743377616973,0.33391211,598.96,597.77,0.33457684]
[1743377617268,1.62829065,598.93,597.77,0.33457684]
[1743377617572,0.30719529,598.92,597.77,0.33457684]
[1743377617773,1.62829065,598.9,597.77,0.33457684]
[1743377618074,0.30719529,598.89,597.77,0.33457684]
[1743377618870,3.13890368,598.9,597.77,0.33457684]
[1743377619067,0.30719529,598.89,597.77,0.33457684]
[1743377619566,1.20363638,598.89,597.77,0.33457684]
[1743377619771,0.30719529,598.88,597.77,0.33457684]
[1743377620677,3.03786129,598.94,597.77,0.33457684]
[1743377620678,2.32016372,598.93,597.77,0.33457684]
[1743377620869,0.30708983,598.92,597.77,0.33457684]
[1743377621871,4.91213571,598.92,597.77,0.33457684]
[1743377622080,6.63003031,598.91,597.77,0.33457684]
[1743377622371,6.33908839,598.9,597.77,0.33457684]
[1743377622572,2.62928178,598.89,597.77,0.33457684]
[1743377622780,0.30708983,598.88,597.77,0.33457684]
[1743377622972,1.20030087,598.88,597.77,0.33457684]
[1743377623174,0.30708983,598.87,597.77,0.33457684]
[1743377623372,2.32219195,598.87,597.77,0.33457684]
[1743377623570,0.30712408,598.86,597.77,0.33457684]
[1743377623772,6.33532656,598.86,597.77,0.33457684]
[1743377623970,4.90716582,598.85,597.77,0.33457684]
[1743377624178,2.62566349,598.84,597.77,0.33457684]
[1743377624378,0.30712408,598.83,597.77,0.33457684]
[1743377624779,1.19972454,598.83,597.77,0.33457684]
[1743377624975,0.30712408,598.82,597.77,0.33457684]
[1743377625179,0.30712618,598.81,597.77,0.33457684]
[1743377625573,0.30712618,598.8,597.77,0.33457684]
[1743377625774,0.30709738,598.9,597.77,0.33457684]
[1743377625980,4.90567275,598.9,597.77,0.33457684]
[1743377626175,1.19969784,598.89,597.77,0.33457684]
[1743377626380,0.30709738,598.88,597.77,0.33457684]
[1743377626580,3.03786129,598.89,597.77,0.33457684]
[1743377626781,2.28132787,599.02,597.77,0.33457684]
[1743377626978,1.62829065,599.15,597.77,0.33457684]
[1743377626979,0.30702914,598.95,597.77,0.33457684]
[1743377627683,0.2908945,599.02,597.77,0.33457684]
[1743377628185,9.06586433,599.11,597.77,0.33457684]
[1743377628384,6.33524105,599.1,597.77,0.33457684]
[1743377628678,2.62797173,599.09,597.77,0.33457684]
[1743377628886,0.30700992,599.08,597.77,0.33457684]
[1743377629086,1.19953156,599.08,597.77,0.33457684]
[1743377629279,0.30700992,599.07,597.77,0.33457684]
[1743377629478,1.19953156,599.07,597.77,0.33457684]
[1743377629682,0.30700992,599.06,597.77,0.33457684]
[1743377629878,2.62540633,599.06,597.77,0.33457684]
[1743377630178,0.30700992,599.05,597.77,0.33457684]
[1743377630583,0.2907754,599.08,597.77,0.33457684]
[1743377630785,2.32150582,599.17,597.77,0.33457684]
[1743377630985,0.89252164,599.17,597.77,0.33457684]
[1743377631186,0.29074868,599.15,597.77,0.33457684]
[1743377631887,4.22113161,599.15,597.77,0.33457684]
[1743377632086,2.31839641,599.14,597.77,0.33457684]
[1743377632684,2.31839641,599.18,597.77,0.33457684]
[1743377633285,6.03299442,599.18,597.77,0.33457684]
[1743377633482,6.33996411,599.17,597.77,0.33457684]
[1743377633687,6.33996411,599.16,597.77,0.33457684]
[1743377633988,6.33996411,599.15,597.77,0.33457684]
[1743377634188,6.33996411,599.14,597.77,0.33457684]
[1743377634386,1.19949133,599.13,597.77,0.33457684]
[1743377634582,0.30696969,599.12,597.77,0.33457684]
[1743377635085,0.30699069,599.11,597.77,0.33457684]
[1743377635287,0.30699069,599.12,597.77,0.33457684]
[1743377635482,2.31839641,599.12,597.77,0.33457684]
[1743377635788,5.3562577,599.12,597.77,0.33457684]
[1743377635983,2.31839641,599.11,597.77,0.33457684]
[1743377636183,2.61337177,599.11,597.77,0.33457684]
[1743377636389,2.60916088,599.11,597.77,0.33457684]
[1743377636888,0.29076447,599.11,597.77,0.33457684]
[1743377637085,0.89252164,599.17,597.77,0.33457684]
[1743377637286,2.31839641,599.18,597.77,0.33457684]
[1743377638889,4.60562473,599.18,597.77,0.33457684]
[1743377639089,6.34424964,599.17,597.77,0.33457684]
[1743377639390,3.32859904,599.19,597.77,0.33457684]
[1743377639391,6.34424964,599.16,597.77,0.33457684]
[1743377639691,6.34825986,599.15,597.77,0.33457684]
[1743377639891,1.19948656,599.14,597.77,0.33457684]
[1743377640185,0.30696492,599.13,597.77,0.33457684]
[1743377640590,1.19948656,599.13,597.77,0.33457684]
[1743377640801,0.30696492,599.12,597.77,0.33457684]
[1743377641892,0.30696492,599.11,597.77,0.33457684]
[1743377642088,2.63094667,599.14,597.77,0.33457684]
[1743377642291,0.29077176,599.11,597.77,0.33457684]
[1743377642894,0.30695724,599.1,597.77,0.33457684]
[1743377645094,0.30695724,599.09,597.77,0.33457684]
[1743377645291,0.29077054,599.09,597.77,0.33457684]
[1743377645489,0.30695724,599.08,597.77,0.33457684]
[1743377646995,4.90907568,599.18,597.77,0.33457684]
[1743377647297,9.39979161,599.17,597.77,0.33457684]
[1743377647595,6.36193032,599.16,597.77,0.33457684]
[1743377647895,2.63792158,599.15,597.77,0.33457684]
[1743377648089,0.30698831,599.14,597.77,0.33457684]
[1743377648289,2.63585055,599.14,597.77,0.33457684]
[1743377648490,0.30698831,599.13,597.77,0.33457684]
[1743377649397,0.30698831,599.12,597.77,0.33457684]
[1743377649595,0.30696125,599.11,597.77,0.33457684]
[1743377649790,0.30696125,599.1,597.77,0.33457684]
[1743377649995,0.30696125,599.09,597.77,0.33457684]
[1743377650196,0.30696125,599.14,597.77,0.33457684]
[1743377650397,0.30696125,599.13,597.77,0.33457684]
[1743377650697,0.30696125,599.12,597.77,0.33457684]
[1743377650897,2.63912402,599.15,597.77,0.33457684]
[1743377651199,0.29077054,599.12,597.77,0.33457684]
[1743377652393,1.18768339,599.12,597.77,0.33457684]
[1743377652592,2.62001269,599.12,597.77,0.33457684]
[1743377653799,2.32924215,599.12,597.77,0.33457684]
[1743377654104,0.29077419,599.11,597.77,0.33457684]
[1743377654505,1.4323293,599.12,597.77,0.33457684]
[1743377654801,0.89743969,599.12,597.77,0.33457684]
[1743377655000,1.4323293,599.12,597.77,0.33457684]
[1743377655204,1.548,599.14,597.77,0.33457684]
[1743377656910,3.87786879,599.14,597.77,0.33457684]
[1743377657111,4.16862354,599.14,597.77,0.33457684]
[1743377657411,2.05953262,599.13,597.77,0.33457684]
[1743377657611,3.49186192,599.13,597.77,0.33457684]
[1743377660616,1.16199313,599.13,597.77,0.33457684]
[1743377661423,1.548,599.14,597.77,0.33457684]
[1743377666026,1.284,599.13,597.77,0.33457684]
[1743377674035,1.284,599.13,597.89,2.55840015]
[1743377674537,1.284,599.13,597.91,0.3344985]
[1743377678538,1.284,599.13,597.96,2.55840015]
[1743377678733,1.284,599.13,597.98,0.33445934]
[1743377687942,1.284,599.13,598.01,2.55840015]
[1743377688146,1.284,599.13,598.03,0.33443138]
[1743377689747,1.284,599.13,598.03,2.89283153]
[1743377691744,1.284,599.13,598.03,0.33443138]
[1743377696651,1.284,599.13,598.06,2.55840015]
[1743377697261,1.284,599.13,598.08,0.33440342]
[1743377698063,1.058,599.12,598.08,0.33440342]
[1743377698258,1.058,599.12,598.12,2.55840015]
[1743377698659,1.058,599.12,598.14,0.33436987]
[1743377707962,1.507,599.11,598.14,0.33436987]
[1743377710865,0.30698518,599.1,598.14,0.33436987]
[1743377712868,1.507,599.11,598.14,0.33436987]
[1743377717477,1.659,599.1,598.14,0.33436987]
[1743377746304,1.398,599.09,598.14,0.33436987]
[1743377750907,1.099,599.08,598.14,0.33436987]
[1743377767927,2.149,599.08,598.14,0.33436987]
[1743377779229,2.149,599.08,598.2,2.55840015]
[1743377779439,2.149,599.08,598.22,0.33432516]
[1743377787337,2.149,599.08,598.29,2.55840015]
[1743377787536,2.149,599.08,598.3,0.33428046]
[1743377803055,2.149,599.08,598.3,2.89268061]
[1743377804558,2.149,599.08,598.32,2.55840015]
[1743377804757,2.149,599.08,598.33,0.3342637]
[1743377806765,2.149,599.08,598.39,2.55840015]
[1743377806958,2.149,599.08,598.4,0.33422459]
[1743377815773,2.149,599.08,598.49,2.55840015]
[1743377815973,2.149,599.08,598.5,0.33416875]
[1743377816673,2.149,599.08,598.55,2.55840015]
[1743377816868,2.149,599.08,598.56,0.33413525]
[1743377818378,2.149,599.08,598.57,2.55840015]
[1743377818579,2.149,599.08,598.58,0.33412409]
[1743377820280,0.29039688,600.25,598.58,0.33412409]
[1743377821175,0.30641428,600.24,598.58,0.33412409]
[1743377821576,0.29039688,600.25,598.58,0.33412409]
[1743377821774,1.6325177,600.42,598.58,0.33412409]
[1743377821981,0.30639836,600.41,598.58,0.33412409]
[1743377822180,7.6889355,600.42,598.58,0.33412409]
[1743377822483,7.89147713,600.41,598.58,0.33412409]
[1743377822683,6.0564178,600.4,598.58,0.33412409]
[1743377822882,6.0564178,600.39,598.58,0.33412409]
[1743377823180,6.0564178,600.38,598.58,0.33412409]
[1743377823484,2.33114952,600.37,598.58,0.33412409]
[1743377823779,3.94420169,600.37,598.58,0.33412409]
[1743377823982,1.43279549,600.36,598.58,0.33412409]
[1743377824182,3.76239146,600.36,598.58,0.33412409]
[1743377824678,1.43279549,600.35,598.58,0.33412409]
[1743377824982,1.16805548,600.35,598.58,0.33412409]
[1743377825182,3.49744694,600.35,598.58,0.33412409]
[1743377826683,5.83688888,600.35,598.58,0.33412409]
[1743377826983,0.89659597,600.34,598.58,0.33412409]
[1743377827184,2.32939146,600.34,598.58,0.33412409]
[1743377827380,3.23289681,600.34,598.58,0.33412409]
[1743377827587,2.32939146,600.34,598.58,0.33412409]
[1743377827780,4.6659063,600.34,598.58,0.33412409]
[1743377827984,4.6659063,600.33,598.58,0.33412409]
[1743377828185,2.32744361,600.32,598.58,0.33412409]
[1743377828381,4.66308944,600.34,598.58,0.33412409]
[1743377828584,3.94225384,600.33,598.58,0.33412409]
[1743377828784,1.43279549,600.32,598.58,0.33412409]
[1743377828986,2.32744361,600.32,598.58,0.33412409]
[1743377829388,3.49549909,600.35,598.58,0.33412409]
[1743377829985,1.43279549,600.34,598.58,0.33412409]
[1743377830182,2.0627036,600.35,598.58,0.33412409]
[1743377830183,5.83044175,600.35,598.58,0.33412409]
[1743377830489,0.89464812,600.34,598.58,0.33412409]
[1743377830688,3.94225384,600.34,598.58,0.33412409]
[1743377830890,3.76773815,600.33,598.58,0.33412409]
[1743377831189,0.89464812,600.32,598.58,0.33412409]
[1743377831490,1.43279549,600.33,598.58,0.33412409]
[1743377831684,1.16805548,600.34,598.58,0.33412409]
[1743377831882,1.16805548,600.32,598.58,0.33412409]
[1743377832690,1.43279549,600.35,598.58,0.33412409]
[1743377832989,1.433,600.36,598.58,0.33412409]
[1743377833191,0.30632272,600.35,598.58,0.33412409]
[1743377833588,5.36461461,600.36,598.58,0.33412409]
[1743377833784,4.65730509,600.35,598.58,0.33412409]
[1743377833986,1.43279549,600.35,598.58,0.33412409]
[1743377834184,1.16805548,600.34,598.58,0.33412409]
[1743377834591,1.433,600.36,598.58,0.33412409]
[1743377834791,2.32544784,600.36,598.58,0.33412409]
[1743377834984,1.433,600.36,598.58,0.33412409]
[1743377835584,0.30631854,600.35,598.58,0.33412409]
[1743377835989,2.32544784,600.36,598.58,0.33412409]
[1743377836188,0.30632435,600.35,598.58,0.33412409]
[1743377836388,1.19840101,600.35,598.58,0.33412409]
[1743377836589,0.30632435,600.34,598.58,0.33412409]
[1743377836993,4.98665863,600.34,598.58,0.33412409]
[1743377837193,1.19840101,600.33,598.58,0.33412409]
[1743377837393,3.92875635,600.33,598.58,0.33412409]
[1743377837589,3.78825762,600.32,598.58,0.33412409]
[1743377837989,1.16805548,600.31,598.58,0.33412409]
[1743377838191,2.62333754,600.31,598.58,0.33412409]
[1743377838394,1.16805548,600.31,598.58,0.33412409]
[1743377838596,4.67422838,600.34,598.58,0.33412409]
[1743377838789,4.67422838,600.33,598.58,0.33412409]
[1743377838995,3.78298544,600.32,598.58,0.33412409]
[1743377839195,1.45528206,600.31,598.58,0.33412409]
[1743377839395,1.16805548,600.31,598.58,0.33412409]
[1743377840496,1.16805548,600.33,598.58,0.33412409]
[1743377841297,1.433,600.36,598.58,0.33412409]
[1743377854199,1.258,600.39,598.58,0.33412409]
[1743377856901,1.183,600.38,598.58,0.33412409]
[1743377872319,1.46,600.37,598.58,0.33412409]
[1743377872522,1.46,600.37,598.59,2.55840015]
[1743377872825,1.46,600.37,598.61,0.33410734]
[1743377874632,1.46,600.37,598.69,2.55840015]
[1743377874931,1.46,600.37,598.71,0.33405154]
[1743377876030,1.46,600.37,598.93,2.55840015]
[1743377876231,1.46,600.37,598.95,0.33391768]
[1743377878127,1.46,600.37,599.06,2.55840015]
[1743377878343,1.46,600.37,599.08,0.33384522]
[1743377879635,1.46,600.37,599.3,2.55840015]
[1743377879831,1.46,600.37,599.32,0.33371153]
[1743377890544,1.272,600.36,599.32,0.33371153]
[1743377891245,1.272,600.36,599.29,2.55840015]
[1743377892338,1.272,600.36,599.25,0.29000967]
[1743377893946,1.272,600.36,593.75,5.81358635]
[1743377893947,1.272,600.36,599.27,2.55840015]
[1743377895950,1.272,600.36,599.28,2.55840015]
[1743377897651,1.272,600.36,599.26,0.29000363]
[1743377899851,1.272,600.36,598.63,2.53775722]
[1743377900151,1.272,600.36,599.26,0.29008703]
[1743377900647,1.272,600.36,598.61,2.55840015]
[1743377901247,1.272,600.36,598.62,0.29009912]
[1743377902749,1.272,600.36,598.8,2.55840015]
[1743377904053,1.272,600.36,598.89,2.55840015]
[1743377905364,1.272,600.36,598.93,2.55840015]
[1743377906456,1.272,600.36,599.48,2.55840015]
[1743377908259,1.272,600.36,599.49,2.55840015]
[1743377910355,1.272,600.36,599.39,2.55840015]
[1743377910554,1.46,600.37,599.39,2.55840015]
[1743377911255,0.2900145,600.73,599.39,2.55840015]
[1743377911460,0.2900145,600.73,599.42,2.55840015]
[1743377911857,6.82188609,600.85,599.42,2.55840015]
[1743377912056,6.82188609,600.84,599.42,2.55840015]
[1743377912257,0.2899553,600.76,599.42,2.55840015]
[1743377912562,2.33825765,600.82,599.42,2.55840015]
[1743377912761,0.30613479,600.81,599.42,2.55840015]
[1743377912957,5.39764814,600.81,599.42,2.55840015]
[1743377913160,7.1280249,600.8,599.42,2.55840015]
[1743377913469,9.52099226,600.79,599.42,2.55840015]